[Event "Slovakia Open Piestany-A 2022"]
[Site "Piestany"]
[Date "2022.07.18"]
[Round "9.19"]
[White "Dixit, Nikhil"]
[Black "Michelle Catherina, P."]
[Result "1/2-1/2"]
[ECO "C78"]
[WhiteElo "2325"]
[BlackElo "2141"]
[Annotator "TA"]
[PlyCount "49"]
[EventDate "2022.07.12"]
[EventType "swiss"]
[EventCountry "SVK"]
[SourceTitle "playchess.com"]
[Source "ChessBase"]
[SourceQuality "1"]
[TimeControl "40/5400+30:1800+30"]

{[%evp 15,49,0,0,0,0,0,0,0,0,0,0,0,0,-42,0,0,0,0,7,9,14,9,25,12,18,18,23,0,0,0,0,0,0,0,0,-25]} 1. e4 {[%emt 0:14:00]} e5 {[%emt 0:01:17]} 2. Nf3 {[%emt 0:02:11]} Nc6 {[%emt 0:00:06]} 3. Bb5 {[%emt 0:00:04][%cal Bf1b5,Bb5a4,Ba4b3][%mdl 32]} a6 {[%emt 0:00:24]} 4. Ba4 {[%emt 0:00:04]} Nf6 {[%emt 0:00:20]} 5. d3 {[%emt 0:00:13]} b5 {[%emt 0:00:16]} 6. Bb3 {[%emt 0:00:09]} Bc5 {[%emt 0:00:02]} 7. O-O {[%emt 0:00:46]} d6 {[%emt 0:00:37]} 8. c3 {[%emt 0:02:53]} h6 {[%emt 0:04:47]} 9. d4 {[%emt 0:07:29] 9.Nbd2 is the modern continuation. C78: Ruy Lopez: Archangelsk and Möller Defences.} Bb6 {[%emt 0:03:29]} 10. dxe5 {[%emt 0:06:51]} Nxe5 {[%emt 0:04:05]} 11. Nxe5 {[%emt 0:07:05]} dxe5 {[%emt 0:00:06]} 12. Qxd8+ {[%emt 0:03:06]} Kxd8 {[%emt 0:00:02]} 13. Nd2 {[%emt 0:01:22]} Ke7 {[%emt 0:08:36] [#]} 14. Re1 $146 {[%emt 0:10:52]} (14. Nf3 $5 {[%cal Rf3e5]}) ({Predecessor:} 14. Nf3 Re8 15. Bc2 Bb7 16. Re1 Kf8 17. a4 Kg8 18. h3 Re7 19. Nd2 Re6 20. Nf1 {½-½ (38) Sutkalenko,D (2292)-Moiseev,S (2462) ICCF email 2018}) 14... Bb7 {[%emt 0:07:33]} 15. Bc2 {[%emt 0:00:51]} Rhe8 {[%emt 0:09:50]} 16. Nf1 {[%emt 0:02:10]} Rad8 {[%emt 0:03:27]} 17. Be3 {[%emt 0:03:38]} Bxe3 {[%emt 0:03:31]} 18. Rxe3 {[%emt 0:00:08]} c5 {[%emt 0:02:18]} 19. f3 {[%emt 0:01:55]} c4 {[%emt 0:08:47]} 20. Kf2 {[%emt 0:02:09]} Nd7 {[%emt 0:02:19]} 21. Ree1 {[%emt 0:03:52]} Nc5 {[%emt 0:01:57] The position is equal.} 22. Red1 {[%emt 0:01:33]} Rxd1 {[%emt 0:05:44]} 23. Rxd1 {[%emt 0:00:10]} Rd8 {[%emt 0:00:53]} 24. Rxd8 {[%emt 0:01:16]} Kxd8 {[%emt 0:00:01]} 25. Ke3 {[%emt 0:03:47] An interesting draw.  Weighted Error Value: White=0.06 (flawless) /Black=0.05 (flawless)} 1/2-1/2

[Event "Slovakia Open Piestany-A 2022"]
[Site "Piestany"]
[Date "2022.07.18"]
[Round "9.20"]
[White "Walter, Ema"]
[Black "Bochnicka, Vladimir"]
[Result "0-1"]
[ECO "B30"]
[WhiteElo "2000"]
[BlackElo "2295"]
[Annotator "TA"]
[PlyCount "90"]
[EventDate "2022.07.12"]
[EventType "swiss"]
[EventCountry "SVK"]
[SourceTitle "playchess.com"]
[Source "ChessBase"]
[SourceQuality "1"]
[TimeControl "40/5400+30:1800+30"]

{[%evp 16,90,24,15,29,17,20,12,13,0,0,0,0,-9,-13,-8,-8,-13,-18,-7,-15,-10,-8,-12,-5,-16,-21,-19,-5,-22,-23,-31,-25,-42,-50,-59,-62,-77,-73,-72,-77,-175,-175,-175,-174,-179,-178,-183,-152,-221,-218,-231,-237,-214,-153,-217,-208,-239,-175,-166,-168,-243,-239,-410,-377,-405,-387,-382,-397,-395,-387,-693,-692,-712,-641,-29978,-29979]} 1. e4 {[%emt 0:00:06]} c5 {[%emt 0:00:05]} 2. Nf3 {[%emt 0:00:07]} Nc6 {[%emt 0:00:05]} 3. Bb5 {[%emt 0:00:07]} e6 {[%emt 0:00:07]} 4. O-O {[%emt 0:00:10]} Nge7 {[%emt 0:00:08]} 5. Re1 {[%emt 0:00:09]} a6 {[%emt 0:00:33]} 6. Bf1 {[%emt 0:00:06]} d5 {[%emt 0:00:45]} 7. exd5 {[%emt 0:00:52]} Nxd5 {[%emt 0:00:12]} 8. d4 {[%emt 0:02:14]} Nf6 {[%emt 0:00:20]} 9. Be3 {[%emt 0:07:26]} Be7 {[%emt 0:00:16] B30: Sicilian: 2...Nc6 3 Bb5, lines without ...g6.} 10. Nc3 {[%emt 0:01:10]} cxd4 {[%emt 0:09:30]} 11. Nxd4 {[%emt 0:02:01]} Bd7 {[%emt 0:00:11] The position is equal.} 12. Qe2 {[%emt 0:09:47]} O-O {[%emt 0:02:01]} 13. Rad1 {[%emt 0:02:39]} Qc7 {[%emt 0:02:20] [#]} 14. g3 $146 {[%emt 0:10:16]} ({Predecessor:} 14. Nb3 Rfe8 15. Nc5 Rac8 16. N5a4 b5 17. Nb6 Rf8 18. Nxc8 Rxc8 19. Bg5 h6 20. Bh4 Qf4 21. Bg3 Qb4 22. Rd3 Nd4 23. Qd2 Rd8 {0-1 (23) Gorcsi,G (2159)-Gyurkovics,M (2067) Eger 2017}) 14... Nxd4 {[%emt 0:10:38]} 15. Bxd4 {[%emt 0:00:19]} Bc6 {[%emt 0:00:25]} 16. Bg2 {[%emt 0:06:05]} Bxg2 {[%emt 0:04:48]} 17. Kxg2 {[%emt 0:00:06]} Qc6+ {[%emt 0:00:05]} 18. Qf3 {[%emt 0:07:31]} Rac8 {[%emt 0:00:51]} 19. Re2 {[%emt 0:07:50]} b5 {[%emt 0:07:27]} 20. a3 {[%emt 0:03:03]} Qxf3+ {[%emt 0:10:43]} 21. Kxf3 {[%emt 0:00:12]} Rc4 {[%emt 0:01:02]} 22. Red2 {[%emt 0:06:08]} Rfc8 {[%emt 0:02:39]} 23. h3 {[%emt 0:02:19]} (23. Re2 {is interesting.} h5 24. Rdd2 Ng4 25. h3) 23... h6 {[%emt 0:02:07]} 24. Ke2 {[%emt 0:05:31]} Ne8 {[%emt 0:07:54][%cal Bf6e8,Be8d6,Bd6c4][%mdl 32]} 25. f4 {[%emt 0:00:27]} R4c6 {[%emt 0:01:46]} 26. Rd3 {[%emt 0:08:00]} Nd6 {[%emt 0:02:21] White is on the road to losing.} 27. g4 {[%emt 0:00:33] Against Nf5} a5 {[%emt 0:04:28]} 28. Be5 {[%emt 0:03:42]} (28. b4 $17 {was worth a try.}) 28... Nc4 $19 {[%emt 0:00:41]} 29. Nxb5 {[%emt 0:00:23]} Nxe5 {[%emt 0:00:22]} 30. fxe5 {[%emt 0:00:17]} Rxc2+ {[%emt 0:00:14]} 31. R1d2 {[%emt 0:00:57] [#]} R2c5 $1 {[%emt 0:06:29][%csl LRb5,LRe5]} 32. Nc3 {[%emt 0:01:57]} (32. Rc3 $17) 32... Bg5 {[%emt 0:01:39]} ({Stronger than} 32... Rxe5+ 33. Kd1) 33. Rd1 {[%emt 0:00:23]} Rxe5+ {[%emt 0:00:05]} 34. Kf3 {[%emt 0:00:24]} f5 {[%emt 0:04:04] Prevents Ne4.} 35. gxf5 {[%emt 0:00:58]} (35. Rb1 $17 {might work better.}) 35... Rxf5+ {[%emt 0:00:29]} ({Worse is} 35... exf5 36. b4 $17) 36. Kg3 {[%emt 0:01:29]} Rcf8 {[%emt 0:02:17]} 37. Ne4 {[%emt 0:01:59]} Re5 {[%emt 0:04:28]} 38. Nc3 {[%emt 0:04:53]} (38. Re1 $142) 38... Kh7 {[%emt 0:03:52]} 39. b4 $2 {[%emt 0:04:42]} (39. Kg2) 39... Be3 {[%emt 0:01:23]} 40. h4 {[%emt 0:01:35] Prevents Rg5+.} axb4 {[%emt 0:01:21]} 41. axb4 {[%emt 0:30:08]} Bf2+ {[%emt 0:30:32]} 42. Kg2 {[%emt 0:01:57]} Bxh4 {[%emt 0:01:23]} 43. b5 $2 {[%emt 0:00:00]} (43. R1d2) 43... Be1 {[%emt 0:00:00]} 44. b6 {[%emt 0:00:00]} Rf4 {[%emt 0:00:00] [#] Hoping for ...Rg5+.} 45. Rb1 {[%emt 0:00:00]} Rg5+ {[%emt 0:00:00] Weighted Error Value: White=0.50/Black=0.07 (flawless)} 0-1

[Event "Slovakia Open Piestany-A 2022"]
[Site "Piestany"]
[Date "2022.07.18"]
[Round "9.21"]
[White "Skreko, Igor"]
[Black "Domalchuk-Jonasson, Aleksandr"]
[Result "1-0"]
[ECO "E36"]
[WhiteElo "2193"]
[BlackElo "2244"]
[Annotator "TA"]
[PlyCount "51"]
[EventDate "2022.07.12"]
[EventType "swiss"]
[EventCountry "SVK"]
[SourceTitle "playchess.com"]
[Source "ChessBase"]
[SourceQuality "1"]
[TimeControl "40/5400+30:1800+30"]

{[%evp 12,51,23,10,16,26,23,19,17,12,17,12,17,5,33,24,14,0,45,47,54,52,379,389,394,374,483,492,483,496,414,339,297,192,791,788,29986,29987,29987,29976,29988,1024]} 1. d4 {[%emt 0:00:02]} Nf6 {[%emt 0:05:27]} 2. c4 {[%emt 0:00:02]} e6 {[%emt 0:00:20]} 3. Nc3 {[%emt 0:00:05]} Bb4 {[%emt 0:00:11]} 4. Qc2 {[%emt 0:00:03]} O-O {[%emt 0:00:46]} 5. a3 {[%emt 0:00:04]} Bxc3+ {[%emt 0:00:29]} 6. Qxc3 {[%emt 0:00:07]} d5 {[%emt 0:00:31]} 7. Bg5 {[%emt 0:01:47]} dxc4 {[%emt 0:01:24] E36: Nimzo-Indian: Classical: 4...d5 5 a3.} 8. Qxc4 {[%emt 0:00:09]} b6 {[%emt 0:00:32]} 9. Rd1 {[%emt 0:02:37]} Ba6 {[%emt 0:03:31] The position is equal.} 10. Qa4 {[%emt 0:01:05]} h6 {[%emt 0:03:31] 10...h6 is better than 10...Qd7.} 11. Bh4 {[%emt 0:00:33]} Qe7 {[%emt 0:05:49]} 12. Nf3 {[%emt 0:01:54]} c5 {[%emt 0:01:55]} 13. dxc5 {[%emt 0:01:56]} bxc5 {[%emt 0:02:32]} 14. Ne5 {[%emt 0:02:47] [#]} Rd8 $146 {[%emt 0:17:30]} ({Predecessor:} 14... Qb7 15. e3 Bxf1 16. Kxf1 Nd5 17. e4 Nb6 18. Qc2 Nc6 19. Nxc6 Qxc6 20. f3 c4 {½-½ (57) Nabaty,T (2644)-Babula,V (2552) Teplice 2017}) 15. Rxd8+ {[%emt 0:02:05]} Qxd8 {[%emt 0:00:09]} 16. Ng4 {[%emt 0:01:31]} h5 $2 {[%emt 0:13:04][%mdl 8192] [#] A mistake that costs the game.} ({Better is} 16... Kf8 $14) 17. Nxf6+ $18 {[%emt 0:01:59]} gxf6 {[%emt 0:00:05]} 18. g4 {[%emt 0:02:58][%cal Bg2g4,Bg4h5,Bh5h6][%mdl 32]} Bb7 {[%emt 0:05:32]} 19. Rg1 {[%emt 0:01:56]} Kf8 {[%emt 0:03:41]} 20. gxh5 {[%emt 0:03:48]} Nd7 {[%emt 0:01:15]} 21. h6 {[%emt 0:04:53]} ({Not} 21. Qg4 Qa5+ 22. Kd1 (22. b4 Qxa3 23. f3 Ke7 $17) 22... Ke7 $11) 21... Ke7 {[%emt 0:03:15]} 22. Rg7 {[%emt 0:04:59] Strongly threatening Bh3.} Rc8 $2 {[%emt 0:15:18]} (22... Bc6 23. Qxc6 Qa5+ 24. b4 Qxa3) 23. Bh3 {[%emt 0:09:35] Hoping for Qg4.} Nf8 {[%emt 0:11:18] [#]} 24. Bxf6+ $1 {[%emt 0:02:04][%mdl 512] White mates.} Kxf6 {[%emt 0:00:05]} 25. Qf4+ {[%emt 0:00:54]} Ke7 {[%emt 0:00:05]} 26. Rxf7+ {[%emt 0:00:09] Weighted Error Value: White=0.12 (very precise) /Black=0.98} (26. h7 $142 Qe8 27. h8=Q Be4 28. Bxe6 Rd8 29. Bxf7 Rd1+ 30. Kxd1 Bc2+ 31. Kxc2 Qc6 32. Bh5+ Kd8 33. Qhxf8+ Qe8 34. Qxe8#) 1-0

[Event "Slovakia Open Piestany-A 2022"]
[Site "Piestany"]
[Date "2022.07.18"]
[Round "9.22"]
[White "Mizicka, Matus"]
[Black "Chlpik, Martin"]
[Result "0-1"]
[ECO "A36"]
[WhiteElo "1915"]
[BlackElo "2236"]
[Annotator "TA"]
[PlyCount "97"]
[EventDate "2022.07.12"]
[EventType "swiss"]
[EventCountry "SVK"]
[SourceTitle "playchess.com"]
[Source "ChessBase"]
[SourceQuality "1"]
[TimeControl "40/5400+30:1800+30"]

{[%evp 13,97,8,12,5,12,-46,-27,-31,-36,-57,-49,-59,-37,-37,-44,-41,-26,-64,-14,-12,-12,-16,0,0,2,-20,-22,-33,0,0,0,0,0,-10,32,-20,-18,-41,-32,-79,-22,-155,-142,-154,-147,-148,-109,-218,-180,-154,-214,-456,-369,-445,-470,-891,-866,-762,-754,-1213,-1200,-29990,-29991,-29990,-1253,-5581,-5506,-5329,-4794,-5949,-5675,-2636,-2115,-29983,-29984,-29994,-29995,-29995,-29996,-29996,-29997,-29997,-29998,-29998,-29999,-29999]} 1. c4 {[%emt 0:20:08]} c5 {[%emt 0:00:13]} 2. Nc3 {[%emt 0:00:04]} Nc6 {[%emt 0:00:09]} 3. g3 {[%emt 0:00:04]} g6 {[%emt 0:00:10]} 4. Bg2 {[%emt 0:00:18]} Bg7 {[%emt 0:00:05]} 5. e3 {[%emt 0:00:21]} e5 {[%emt 0:02:44]} 6. Nge2 {[%emt 0:00:29]} Nge7 {[%emt 0:01:39]} 7. O-O {[%emt 0:01:17]} O-O {[%emt 0:00:21]} 8. f4 {[%emt 0:03:26] A36: Symmetrical English vs ...g6: 4 Bg2 Bg7.} d6 {[%emt 0:00:51][%cal Bd7d6,Bd6e5][%mdl 32]} 9. fxe5 {[%emt 0:00:33]} ({White should play} 9. d3 $11) 9... dxe5 $15 {[%emt 0:07:40]} 10. Nd5 {[%emt 0:02:21] [#] Black has an edge.} Nxd5 $146 {[%emt 0:01:19]} ({Predecessor:} 10... f5 11. d3 Rb8 12. Nec3 Be6 13. Rb1 a6 14. a4 Bxd5 15. cxd5 Nb4 16. e4 Qb6 {1-0 (44) Najjar,S (1620)-Hasnaoui,A (1117) Sousse 2021}) 11. cxd5 {[%emt 0:00:09]} Nb4 {[%emt 0:00:15]} 12. Qb3 {[%emt 0:00:46]} b6 {[%emt 0:08:27]} 13. a3 $1 {[%emt 0:00:24]} (13. d6 $2 Be6 14. Qa4 Rc8 15. Qxa7 Qxd6 $19) 13... Ba6 {[%emt 0:00:05]} 14. Nc3 {[%emt 0:08:59]} Nd3 {[%emt 0:04:01] White must now prevent ...Qd7.} (14... Bxf1 15. Bxf1 a5 16. axb4 $16) 15. Qa4 {[%emt 0:03:33] Prevents Qd7.} Bb7 {[%emt 0:08:08]} (15... Qc8 $1 $15) 16. Qc4 $11 {[%emt 0:04:03]} Nxc1 {[%emt 0:00:57]} 17. Raxc1 {[%emt 0:00:06]} Qd7 {[%emt 0:04:05]} 18. Rf2 {[%emt 0:00:41]} f5 {[%emt 0:01:43][%cal Bf7f5,Bf5f4][%mdl 32]} 19. e4 {[%emt 0:04:54]} (19. g4 $5) 19... f4 {[%emt 0:02:25]} 20. Rcf1 {[%emt 0:01:59][%cal Rg3f4]} g5 {[%emt 0:02:41]} 21. Qe2 {[%emt 0:01:39]} Rae8 {[%emt 0:05:32]} 22. Qh5 $1 {[%emt 0:00:40]} Ba6 {[%emt 0:03:15]} 23. Bh3 {[%emt 0:01:15]} Qd8 {[%emt 0:02:26]} 24. d3 {[%emt 0:05:37]} (24. Rc1 $14) 24... Bxd3 {[%emt 0:00:45]} 25. Rd1 {[%emt 0:00:11]} c4 {[%emt 0:00:11]} 26. Bg4 {[%emt 0:12:44]} (26. Kh1 $15) 26... b5 {[%emt 0:04:50]} (26... fxg3 27. hxg3 Rxf2 28. Kxf2 $11) ({Black should try} 26... a6 $17) 27. Qh3 {[%emt 0:01:51]} (27. Bf5 $1 $11 Rxf5 28. exf5) 27... Qb6 {[%emt 0:03:58]} 28. Bf5 {[%emt 0:00:53]} h6 {[%emt 0:03:05]} 29. g4 {[%emt 0:00:27]} a5 {[%emt 0:02:47] Strongly threatening ...b4.} 30. Qh5 {[%emt 0:01:49]} (30. Rxd3 $17 cxd3 31. Qxd3) 30... b4 $36 {[%emt 0:06:13][%mdl 2048] Black is on the roll.} 31. axb4 {[%emt 0:09:58]} axb4 {[%emt 0:00:18] Dancing on a razor blade.} 32. Nb1 {[%emt 0:01:26] [#]} (32. Na4 {is the only way for White.} Qb5 33. b3 cxb3 34. Qg6 Rxf5 35. gxf5 (35. exf5 Rf8 $17) 35... Bxe4 36. Nc5 Bxf5 37. Qxf5 Qxc5 38. d6) 32... Rd8 {[%emt 0:02:45][%cal Of8f5] ...Rxf5! is the strong threat.} 33. Be6+ {[%emt 0:02:06]} Kh8 {[%emt 0:00:41]} 34. Nd2 {[%emt 0:02:09]} (34. Bf5 $142 Ra8 35. Nd2) 34... c3 {[%emt 0:00:36]} 35. bxc3 {[%emt 0:07:23]} bxc3 {[%emt 0:00:21]} 36. Nf3 {[%emt 0:03:03]} c2 {[%emt 0:01:35]} 37. Rxd3 {[%emt 0:00:35]} c1=Q+ {[%emt 0:00:10]} 38. Kg2 {[%emt 0:00:16]} Qce3 {[%emt 0:02:56]} 39. Rxe3 {[%emt 0:00:50]} fxe3 {[%emt 0:00:02]} ({Stronger than} 39... Qxe3 40. Nxg5 f3+ 41. Nxf3 $15) 40. Re2 {[%emt 0:00:30]} Qb5 {[%emt 0:02:22]} ({Not} 40... Qb1 $2 41. Bf5 $19) 41. Rxe3 {[%emt 0:06:21]} Qb2+ {[%emt 0:01:34]} 42. Kg3 {[%emt 0:00:55]} Qc1 {[%emt 0:00:02]} 43. Kf2 {[%emt 0:03:44]} Rb8 {[%emt 0:00:46] Black mates.} 44. Re2 {[%emt 0:00:57] [#]} Rxf3+ $1 {[%emt 0:01:34][%mdl 512]} 45. Kxf3 {[%emt 0:01:00]} Qf1+ {[%emt 0:00:06]} 46. Ke3 {[%emt 0:01:27]} Rb3+ {[%emt 0:00:06]} 47. Kd2 {[%emt 0:01:05]} Rb2+ {[%emt 0:00:04][%mdl 64] Skewer} 48. Kc3 {[%emt 0:01:27]} Qc1+ {[%emt 0:00:04]} 49. Kd3 {[%emt 0:00:40] Weighted Error Value: White=0.97/Black=0.27 (precise)} 0-1

[Event "Slovakia Open Piestany-A 2022"]
[Site "Piestany"]
[Date "2022.07.18"]
[Round "9.23"]
[White "Delgerdalai, Bayarjavkhlan"]
[Black "Pennica, Andrea"]
[Result "1-0"]
[ECO "B04"]
[WhiteElo "2209"]
[BlackElo "1986"]
[Annotator "TA"]
[PlyCount "51"]
[EventDate "2022.07.12"]
[EventType "swiss"]
[EventCountry "SVK"]
[SourceTitle "playchess.com"]
[Source "ChessBase"]
[SourceQuality "1"]
[TimeControl "40/5400+30:1800+30"]

{[%evp 14,51,43,44,47,39,45,33,64,54,64,54,86,77,80,79,86,90,115,128,222,191,172,138,147,117,245,226,220,225,1066,1068,1758,1768,29987,29988,29988,29989,29997,29998]} 1. e4 {[%emt 0:00:02]} Nf6 {[%emt 0:02:45]} 2. e5 {[%emt 0:00:07]} Nd5 {[%emt 0:00:05]} 3. d4 {[%emt 0:00:13]} d6 {[%emt 0:00:06]} 4. Nf3 {[%emt 0:01:02]} dxe5 {[%emt 0:01:34]} 5. Nxe5 {[%emt 0:00:14]} g6 {[%emt 0:05:35]} 6. c4 {[%emt 0:07:08]} Nb6 {[%emt 0:01:57]} 7. Nc3 {[%emt 0:02:55]} Bg7 {[%emt 0:00:18]} 8. Be3 {[%emt 0:01:43]} Be6 {[%emt 0:03:09] B04: Alekhine's Defence: 4 Nf3.} 9. Qb3 {[%emt 0:19:30]} O-O {[%emt 0:10:37]} 10. Rd1 {[%emt 0:01:38][%cal Od4d5]} Qc8 {[%emt 0:03:57] White is slightly better.} 11. Nf3 {[%emt 0:03:10] [#]} Bg4 $146 {[%emt 0:01:20]} ({Predecessor:} 11... a5 12. a4 Na6 13. Be2 Nb4 14. O-O Nd7 15. Rd2 Nf6 16. d5 Bf5 17. Nd4 Bg4 {½-½ (48) Sgherri,M (2329)-Schmidt,L (2389) ICCF email 2014}) 12. Be2 {[%emt 0:03:12]} Nc6 {[%emt 0:02:07]} 13. d5 {[%emt 0:05:31]} Bxf3 {[%emt 0:07:10]} 14. gxf3 {[%emt 0:01:35][%cal Bg2f3,Bf3f4][%mdl 32]} Nb8 {[%emt 0:00:52]} 15. h4 {[%emt 0:06:44][%cal Bh2h4,Bh4h5][%mdl 32]} N6d7 {[%emt 0:06:41]} 16. h5 {[%emt 0:03:49] White is much more active.} Ne5 {[%emt 0:00:57]} (16... Nf6 $16) 17. f4 {[%emt 0:07:16]} Ng4 {[%emt 0:00:27]} 18. Ne4 {[%emt 0:06:02][%cal Bc3e4,Be4g5,Bg5h7][%mdl 32] Strongly threatening hxg6.} Nxe3 {[%emt 0:15:08]} 19. Qxe3 {[%emt 0:02:23] Black must now prevent hxg6.} ({Don't do} 19. fxe3 e5 $16) 19... Re8 {[%emt 0:03:21] Loses the game.} (19... Qf5 $16) 20. hxg6 $18 {[%emt 0:01:17]} hxg6 {[%emt 0:00:20]} 21. Ng5 {[%emt 0:00:57] aiming for Qg3.} e5 $2 {[%emt 0:03:26]} (21... Qf5 22. Qg3 Na6) 22. dxe6 $1 {[%emt 0:04:34]} f6 {[%emt 0:00:55] [#]} 23. e7 $1 {[%emt 0:16:03][%cal Oc4c5] Threatening mate with c5!} Nc6 {[%emt 0:02:35] [#]} (23... fxg5 24. c5) 24. c5 $1 {[%emt 0:01:07] White mates.} Rxe7 {[%emt 0:01:31]} 25. Qb3+ {[%emt 0:00:14]} Kf8 {[%emt 0:00:31]} 26. Nh7+ {[%emt 0:00:05] Weighted Error Value: White=0.05 (flawless) /Black=0.52} 1-0

[Event "Slovakia Open Piestany-A 2022"]
[Site "Piestany"]
[Date "2022.07.18"]
[Round "9.24"]
[White "Soham Datar"]
[Black "Gyerpal, Adrian"]
[Result "1/2-1/2"]
[ECO "C88"]
[WhiteElo "2111"]
[BlackElo "2193"]
[Annotator "TA"]
[PlyCount "42"]
[EventDate "2022.07.12"]
[EventType "swiss"]
[EventCountry "SVK"]
[SourceTitle "playchess.com"]
[Source "ChessBase"]
[SourceQuality "1"]
[TimeControl "40/5400+30:1800+30"]

{[%evp 20,26,22,27,24,47,66,69,72]} 1. e4 {[%emt 0:00:12]} e5 {[%emt 0:00:53]} 2. Nf3 {[%emt 0:00:08]} Nc6 {[%emt 0:00:05]} 3. Bb5 {[%emt 0:00:08]} a6 {[%emt 0:00:09]} 4. Ba4 {[%emt 0:00:06]} Nf6 {[%emt 0:00:07]} 5. O-O {[%emt 0:00:06]} Be7 {[%emt 0:00:24]} 6. Re1 {[%emt 0:00:08]} b5 {[%emt 0:00:09]} 7. Bb3 {[%emt 0:00:06]} O-O {[%emt 0:00:10]} 8. d4 {[%emt 0:02:49]} Nxd4 {[%emt 0:06:04]} 9. Bxf7+ {[%emt 0:00:22]} Kxf7 {[%emt 0:10:53]} 10. Nxe5+ {[%emt 0:01:04]} Kg8 {[%emt 0:00:06]} 11. Qxd4 {[%emt 0:00:06]} Bb7 {[%emt 0:01:11] C88: Closed Ruy Lopez: Anti-Marshall Systems.} 12. Nc3 {[%emt 0:24:23]} d6 {[%emt 0:03:44]} 13. Nf3 {[%emt 0:00:24] 0x0.0013b9df397edp-1022s more active pieces.} Qd7 {[%emt 0:02:30] [#]} {Predecessor:} 14. a4 $146 Ng4 15. Nd5 Bd8 16. axb5 Qxb5 17. c4 Qe8 18. h3 Nf6 19. Bg5 Qg6 20. Nxf6+ Bxf6 21. Bxf6 Rxf6 {1-0 (43) Molarius,R-Juntunen,J Finland 1964} 1/2-1/2

[Event "Slovakia Open Piestany-A 2022"]
[Site "Piestany"]
[Date "2022.07.18"]
[Round "9.25"]
[White "Sevcikova, Lucia"]
[Black "Sosovickova, Jana"]
[Result "1/2-1/2"]
[ECO "D36"]
[WhiteElo "2036"]
[BlackElo "1958"]
[Annotator "TA"]
[PlyCount "57"]
[EventDate "2022.07.12"]
[EventType "swiss"]
[EventCountry "SVK"]
[SourceTitle "playchess.com"]
[Source "ChessBase"]
[SourceQuality "1"]
[TimeControl "40/5400+30:1800+30"]

{[%evp 27,57,22,30,35,52,48,55,46,54,2,3,12,10,12,18,0,65,56,61,52,56,50,47,47,50,56,47,38,83,47,49,58]} 1. d4 {[%emt 0:13:21]} d5 {[%emt 0:00:05]} 2. c4 {[%emt 0:00:07]} e6 {[%emt 0:00:03]} 3. Nc3 {[%emt 0:00:04]} Nf6 {[%emt 0:00:03]} 4. cxd5 {[%emt 0:00:04]} exd5 {[%emt 0:00:05]} 5. Bg5 {[%emt 0:00:03]} Be7 {[%emt 0:00:17]} 6. e3 {[%emt 0:00:07]} c6 {[%emt 0:00:17]} 7. Bd3 {[%emt 0:00:08]} Nbd7 {[%emt 0:00:34]} 8. h3 {[%emt 0:00:23]} O-O {[%emt 0:05:10]} 9. Qc2 {[%emt 0:02:03]} Re8 {[%emt 0:00:21]} 10. Nf3 {[%emt 0:01:20]} Nf8 {[%emt 0:09:31]} 11. O-O {[%emt 0:01:28]} g6 {[%emt 0:01:55]} 12. Ne5 {[%emt 0:01:08]} Nh5 {[%emt 0:03:59]} 13. Bxe7 {[%emt 0:04:16]} Qxe7 {[%emt 0:01:01]} 14. Rae1 {[%emt 0:09:44]} Be6 {[%emt 0:08:23]} 15. g4 {[%emt 0:09:56] D36: Queen's Gambit Declined: Exchange Variation: Main line (5 Bg5 c6 6 Qc2).} Ng7 {[%emt 0:02:17]} 16. f4 $1 {[%emt 0:01:10] [#]} f5 $146 {[%emt 0:01:58]} ({Predecessor:} 16... f6 17. Nf3 f5 18. g5 Nd7 19. Qg2 Nb6 20. Ne5 Nd7 21. h4 Nxe5 22. fxe5 Bf7 {1-0 (32) Komljenovic,D (2490)-Caselas Cabanas,J Ponferrada 1991}) 17. g5 {[%emt 0:06:44]} Nd7 {[%emt 0:04:20]} 18. a3 {[%emt 0:03:43]} (18. h4 $14) 18... Nxe5 $11 {[%emt 0:07:59]} 19. dxe5 {[%emt 0:00:37]} Red8 {[%emt 0:04:12]} 20. Qf2 {[%emt 0:06:10]} c5 {[%emt 0:05:09]} 21. Rc1 {[%emt 0:03:42]} Rac8 {[%emt 0:08:14]} (21... d4 $11 22. Ne2 dxe3 23. Qxe3 a6) 22. Nb5 {[%emt 0:05:12]} a6 {[%emt 0:00:51]} 23. Nd6 {[%emt 0:00:40] White is more active.} Rc7 {[%emt 0:02:15]} 24. Rfd1 {[%emt 0:01:46]} Ne8 {[%emt 0:01:27]} 25. Nxe8 {[%emt 0:00:23]} Rxe8 {[%emt 0:01:23]} 26. Be2 {[%emt 0:02:42]} Rd8 {[%emt 0:04:32]} 27. Bf3 {[%emt 0:02:10]} b5 {[%emt 0:02:08]} 28. Rd2 {[%emt 0:01:59]} Rcd7 {[%emt 0:04:32]} 29. Rcd1 {[%emt 0:03:05] Weighted Error Value: White=0.12 (very precise) /Black=0.14 (very precise)} 1/2-1/2